bitfinex-derivatives/quotes_ETHF0:USTF0_20240818
["timestamp","ask_amount","ask_price","bid_price","bid_amount"]
[1723954227593,0.00575827,2606.5,2606.3,5.29528408]
[1723954227882,0.97275827,2606.5,2606.3,5.29528408]
[1723954230998,0.00575827,2606.5,2606.3,6.87514105]
[1723954231188,0.00575827,2606.5,2606.3,5.29528408]
[1723954231409,0.00575827,2606.5,2606.3,5.87072408]
[1723954231590,0.967,2606.4,2606.3,5.29528408]
[1723954232299,0.967,2606.4,2606.3,4.91988408]
[1723954235800,0.00575827,2606.5,2606.3,4.91988408]
[1723954235987,0.00575827,2606.5,2606.3,5.27438408]
[1723954236196,0.00575827,2606.5,2606.3,6.27881105]
[1723954237922,0.00575827,2606.5,2606.4,0.57542]
[1723954238295,0.00575827,2606.5,2606.4,1.18120909]
[1723954238494,0.00575827,2606.5,2606.4,2.18563606]
[1723954239096,0.00575827,2606.5,2606.4,6.47925695]
[1723954242101,0.00575827,2606.5,2606.4,6.47924359]
[1723954245012,0.00575827,2606.5,2606.4,11.28304359]
[1723954246521,0.00575827,2606.5,2606.4,10.67726786]
[1723954248813,0.00575827,2606.5,2606.4,10.10184786]
[1723954249112,0.00575827,2606.5,2606.4,6.26504786]
[1723954249311,0.00575827,2606.5,2606.4,5.29804786]
[1723954249812,0.00575827,2606.5,2606.4,5.90381999]
[1723954250415,0.00575827,2606.5,2606.4,4.89939302]
[1723954250819,0.00575827,2606.5,2606.4,5.90381999]
[1723954251011,0.97275827,2606.5,2606.4,4.89939302]
[1723954251213,0.97275827,2606.5,2606.4,4.29362089]
[1723954254014,4.80955827,2606.5,2606.4,1.61021942]
[1723954254206,5.38495827,2606.5,2606.3,1.69312697]
[1723954254408,1.54815827,2606.5,2606.3,1.69312697]
[1723954255315,0.57542,2606.4,2606.3,1.00442697]
[1723954255627,0.57542,2606.4,2605.7,1.00442697]
[1723954255628,0.57551,2606.0,2605.7,1.00442697]
[1723954255821,0.967,2605.8,2605.7,1.00442697]
[1723954256009,0.967,2605.8,2605.6,1.37622697]
[1723954256213,0.967,2605.8,2605.7,1.00442697]
[1723954256416,0.3692,2605.9,2605.6,1.37622697]
[1723954256622,0.967,2605.8,2605.6,1.37622697]
[1723954257718,0.967,2605.8,2605.5,1.35272697]
[1723954257719,0.967,2605.7,2605.5,1.35272697]
[1723954257922,0.967,2605.7,2605.5,0.3483]
[1723954261218,0.967,2605.7,2605.3,0.00996509]
[1723954261219,7.0454,2605.6,2605.3,0.00996509]
[1723954261413,0.57564,2605.4,2605.3,0.00996509]
[1723954261922,4.78124,2605.4,2605.3,0.00996509]
[1723954267633,5.74824,2605.4,2605.3,0.00996509]
[1723954270017,5.74824,2605.4,2604.9,0.7101]
[1723954270018,10.1726,2605.4,2604.9,0.7101]
[1723954270233,0.967,2605.0,2604.9,0.3596]
[1723954271026,0.967,2605.0,2604.9,0.36235522]
[1723954273027,1.3185,2605.0,2604.9,0.36235522]
[1723954278427,0.967,2605.0,2604.9,0.36235522]
[1723954281532,0.57571,2605.1,2604.9,0.36235522]
[1723954281735,0.967,2605.0,2604.9,0.36235522]
[1723954295139,0.57572,2605.1,2604.9,0.36235522]
[1723954295347,0.967,2605.0,2604.9,0.36235522]
[1723954299443,1.3344,2605.0,2604.9,0.36235522]
[1723954299833,0.57578,2604.8,2604.7,0.00575827]
[1723954300070,4.75058,2604.8,2604.7,0.00575827]
[1723954300348,8.58978,2604.8,2604.7,0.00575827]
[1723954300847,8.59338772,2604.8,2604.7,0.00888965]
[1723954303448,13.59338772,2604.8,2604.7,0.00888965]
[1723954305035,8.59338772,2604.8,2604.7,0.00888965]
[1723954305839,8.89256022,2604.8,2604.7,0.00888965]
[1723954308344,5.05336022,2604.8,2604.7,0.00888965]
[1723954308541,8.89256022,2604.8,2604.7,0.00888965]
[1723954314253,8.59338772,2604.8,2604.7,0.00888965]
[1723954315954,8.59338772,2604.8,2604.7,9.65e-06]
[1723954315955,14.16916772,2604.8,2604.7,9.65e-06]
[1723954317048,0.967,2604.2,2604.1,0.7526]
[1723954317950,0.967,2604.2,2604.1,0.75649167]
[1723954318151,1.54291,2604.2,2604.1,0.75649167]
[1723954319761,0.967,2604.2,2604.1,0.75649167]
[1723954322259,0.967,2604.2,2604.1,4.59649167]
[1723954322461,0.967,2604.2,2604.1,0.75649167]
[1723954323867,2.77799126,2604.7,2604.1,17.95994737]
[1723954323868,3.2078,2604.7,2604.1,17.95994737]
[1723954324055,0.00360772,2604.8,2604.7,0.5758]
[1723954324451,0.00360772,2604.8,2604.7,8.62722697]
[1723954324664,0.00360772,2604.8,2604.7,4.415]
[1723954325063,0.00360772,2604.8,2604.6,1.0645]
[1723954325260,0.967,2604.7,2604.6,1.0645]
[1723954327860,0.00360772,2604.8,2604.6,1.0645]
[1723954328067,0.967,2604.7,2604.6,1.0645]
[1723954328567,0.967,2604.7,2604.6,4.9037]
[1723954329571,0.967,2604.7,2604.6,1.0645]
[1723954329874,0.967,2604.7,2604.6,4.9037]
[1723954336463,0.967,2604.7,2604.6,6.51417799]
[1723954336671,0.967,2604.7,2604.6,5.90812697]
[1723954337370,0.967,2604.7,2604.6,4.9037]
[1723954337669,0.00360772,2604.8,2604.6,5.47952]
[1723954337867,0.97060772,2604.8,2604.6,10.32976948]
[1723954338777,0.97060772,2604.8,2604.6,9.32534251]
[1723954339073,0.97060772,2604.8,2604.6,10.90558948]
[1723954339975,0.97060772,2604.8,2604.6,10.32976948]
[1723954340404,0.00360772,2604.8,2604.6,9.32534251]
[1723954340686,0.97060772,2604.8,2604.6,10.32976948]
[1723954341378,0.97060772,2604.8,2604.6,0.715]
[1723954341379,4.1748,2604.7,2604.6,0.715]
[1723954341676,4.5168,2604.7,2604.6,0.715]
[1723954344886,4.5168,2604.7,2604.3,1.35712697]
[1723954345177,0.342,2604.7,2604.4,0.73]
[1723954345987,0.967,2604.5,2604.4,0.73]
[1723954347277,0.00360772,2604.8,2604.4,4.5692]
[1723954347588,0.97060772,2604.8,2604.6,1.00442697]
[1723954347912,0.97060772,2604.8,2604.7,0.3737]
[1723954352784,0.97060772,2604.8,2604.7,4.2129]
[1723954352785,0.00360772,2604.8,2604.7,4.2129]
[1723954352983,3.2078,2605.7,2604.8,3.8392]
[1723954353187,0.3673,2605.8,2605.2,1.97122861]
[1723954353390,0.967,2605.7,2605.2,1.97122861]
[1723954353689,0.967,2605.7,2605.4,0.57563]
[1723954353890,1.3343,2605.8,2605.5,1.29301]
[1723954354100,0.00419743,2605.7,2605.5,5.5342675]
[1723954354487,0.00419743,2605.7,2605.5,9.3718675]
[1723954354695,0.00419743,2605.7,2605.5,8.7962575]
[1723954354999,0.967,2605.6,2605.5,8.7962575]
[1723954355590,0.00419743,2605.7,2605.5,8.7962575]
[1723954355591,0.00419743,2605.7,2605.5,14.3718775]
[1723954355795,0.00419743,2605.7,2605.6,3.8376]
[1723954356212,0.00419743,2605.7,2605.6,8.05737578]
[1723954356889,0.00419743,2605.7,2605.6,13.63297578]
[1723954357087,0.00419743,2605.7,2605.6,8.63297578]
[1723954357487,0.00419743,2605.7,2605.6,8.05737578]
[1723954358288,0.97119743,2605.7,2605.6,8.05737578]
[1723954360985,0.00419743,2605.7,2605.6,8.05737578]
[1723954361187,0.00419743,2605.7,2605.6,8.63297578]
[1723954364798,0.00419743,2605.7,2605.6,8.05737578]
[1723954365016,0.00419743,2605.7,2605.6,4.21977578]
[1723954365296,0.00419743,2605.7,2605.6,8.05737578]
[1723954366402,0.97119743,2605.7,2605.6,4.21977578]
[1723954368702,0.00419743,2605.7,2605.6,4.21977578]
[1723954368886,0.00419743,2605.7,2605.6,8.05737578]
[1723954369584,0.00419743,2605.7,2605.6,8.63297578]
[1723954370395,0.00419743,2605.7,2605.6,8.05737578]
[1723954370706,0.00419743,2605.7,2605.6,8.63297578]
[1723954371696,0.00419743,2605.7,2605.6,8.05737578]
[1723954372202,0.00419743,2605.7,2605.6,8.63297578]
[1723954372585,0.00419743,2605.7,2605.6,8.05737578]
[1723954372785,0.00419743,2605.7,2605.6,4.21977578]
[1723954372998,0.00419743,2605.7,2605.6,8.05737578]
[1723954373303,0.00419743,2605.7,2605.6,8.63297578]
[1723954374788,0.00419743,2605.7,2605.6,8.05737578]
[1723954375190,0.00419743,2605.7,2605.6,4.21977578]
[1723954378396,0.97119743,2605.7,2605.6,4.21977578]
[1723954378596,0.5756,2605.6,2605.4,0.00575827]
[1723954378896,0.967,2605.5,2605.4,0.00575827]
[1723954379296,8.58882,2605.5,2605.4,0.00575827]
[1723954379496,8.58882,2605.5,2604.7,4.15049]
[1723954379497,0.967,2605.0,2604.8,0.725]
[1723954379694,3.2078,2605.5,2604.9,1.54273]
[1723954379902,0.3477,2605.5,2605.3,0.967]
[1723954380200,0.00419743,2605.7,2605.4,1.30064]
[1723954380390,0.35189743,2605.7,2605.4,5.39002919]
[1723954380800,0.35189743,2605.7,2605.4,4.81438919]
[1723954381299,1.31889743,2605.7,2605.4,4.81438919]
[1723954382605,0.967,2605.5,2605.4,4.81438919]
[1723954382798,0.967,2605.5,2605.4,0.725]
[1723954384498,0.35189743,2605.7,2605.4,0.725]
[1723954384704,0.00419743,2605.7,2605.4,5.85453148]
[1723954384908,0.00419743,2605.7,2605.5,0.358]
[1723954385308,0.00419743,2605.7,2605.6,4.2820109]
[1723954388118,0.00419743,2605.7,2605.6,4.8576109]
[1723954388805,0.00419743,2605.7,2605.6,4.2820109]
[1723954389310,0.00419743,2605.7,2605.6,4.8576109]
[1723954392814,0.00419743,2605.7,2605.6,4.2820109]
[1723954394503,0.00575827,2605.9,2605.6,4.2820109]
[1723954394504,0.00575827,2605.9,2605.8,0.57556]
[1723954394905,0.00575827,2605.9,2605.8,4.09440484]
[1723954395112,0.00575827,2605.9,2605.8,4.46720484]
[1723954395521,0.01042161,2605.9,2605.8,5.07307594]
[1723954395700,0.01042161,2605.9,2605.8,4.46720484]
[1723954395903,0.01042161,2605.9,2605.8,0.3728]
[1723954397510,0.01042161,2605.9,2605.8,1.98292029]
[1723954397714,0.01042161,2605.9,2605.8,10.08005205]
[1723954398502,0.01042161,2605.9,2605.8,12.50097996]
[1723954398709,0.01042161,2605.9,2605.8,13.46023996]
[1723954399515,0.01042161,2605.9,2605.8,13.46020949]
[1723954399904,0.01042161,2605.9,2605.8,12.50094949]
[1723954400210,0.01042161,2605.9,2605.8,12.50094909]
[1723954400725,0.01042161,2605.9,2605.8,8.66334909]
[1723954402314,0.01042161,2605.9,2605.8,8.66328815]
[1723954402509,0.01042161,2605.9,2605.8,9.62254815]
[1723954402813,0.01042161,2605.9,2605.8,8.11620524]
[1723954403418,0.01042161,2605.9,2605.8,11.95380524]
[1723954404317,0.01042161,2605.9,2605.8,8.11620524]
[1723954404614,0.01042161,2605.9,2605.8,4.0328445]
[1723954404821,0.01042161,2605.9,2605.8,3.53015147]
[1723954405013,0.01042161,2605.9,2605.8,4.0328445]
[1723954406908,0.01042161,2605.9,2605.8,4.03284338]
[1723954407941,0.01042161,2605.9,2605.8,3.42698257]
[1723954408225,0.01042161,2605.9,2605.8,4.03284301]
[1723954409316,0.01042161,2605.9,2605.8,4.99984301]
[1723954409518,0.01042161,2605.9,2605.8,3.49161199]
[1723954409723,0.01042161,2605.9,2605.8,4.03264484]
[1723954411724,0.01042161,2605.9,2605.8,8.82950484]
[1723954411913,0.01042161,2605.9,2605.8,6.75917336]
[1723954412138,0.01042161,2605.9,2605.8,12.1047575]
[1723954412426,0.01042161,2605.9,2605.8,8.26715734]
[1723954412636,0.01042161,2605.9,2605.8,7.66129706]
[1723954412821,0.01042161,2605.9,2605.8,8.26716551]
[1723954415738,0.01042161,2605.9,2605.8,9.23416551]
[1723954415917,0.01042161,2605.9,2605.8,10.19342551]
[1723954416236,0.01042161,2605.9,2605.8,14.03106988]
[1723954417129,0.01042161,2605.9,2605.8,12.52308574]
[1723954418523,0.01042161,2605.9,2605.8,14.03072376]
[1723954418928,0.01042161,2605.9,2605.8,10.19312376]
[1723954419325,0.01042161,2605.9,2605.8,14.03072376]
[1723954420342,0.01042161,2605.9,2605.8,13.42485531]
[1723954420630,0.01042161,2605.9,2605.8,10.19304349]
[1723954420823,0.01042161,2605.9,2605.8,14.03064349]
[1723954422526,0.01042161,2605.9,2605.8,13.07138349]
[1723954423323,0.01042161,2605.9,2605.8,9.23378349]
[1723954423522,0.01042161,2605.9,2605.8,13.07138349]
[1723954424334,0.01042161,2605.9,2605.8,13.07139329]
[1723954424742,0.01042161,2605.9,2605.8,12.4655272]
[1723954424935,0.01042161,2605.9,2605.8,12.10439338]
[1723954425128,3.84802161,2605.9,2605.8,2.92379464]
[1723954425434,3.84802161,2605.9,2605.7,1.35306683]
[1723954425632,0.3547,2605.8,2605.7,1.35306683]
[1723954425829,0.3547,2605.8,2605.7,1.95898088]
[1723954426630,0.3547,2605.8,2605.7,3.87797992]
[1723954427330,0.3547,2605.8,2605.7,2.92598088]
[1723954427728,0.3547,2605.8,2605.7,4.84500674]
[1723954429536,0.3547,2605.8,2605.7,5.34757793]
[1723954429930,0.3547,2605.8,2605.7,4.84571659]
[1723954430131,0.3547,2605.8,2605.7,4.84572163]
[1723954430535,0.3547,2605.8,2605.7,5.34757092]
[1723954430763,0.3547,2605.8,2605.7,3.8399329]
[1723954431239,0.3547,2605.8,2605.7,5.34757092]
[1723954432243,0.3547,2605.8,2605.7,3.8399329]
[1723954432531,0.01042161,2605.9,2605.7,10.08175195]
[1723954432737,0.01042161,2605.9,2605.8,4.4101838]
[1723954434037,0.01042161,2605.9,2605.8,4.8274929]
[1723954434342,0.01042161,2605.9,2605.8,12.85944835]
[1723954434531,0.01042161,2605.9,2605.8,14.77819348]
[1723954436342,0.01042161,2605.9,2605.8,14.17227439]
[1723954436544,0.01042161,2605.9,2605.8,14.77812753]
[1723954436741,0.01042161,2605.9,2605.8,14.17227439]
[1723954437046,0.01042161,2605.9,2605.8,14.77812779]
[1723954437946,0.01042161,2605.9,2605.8,13.81886779]
[1723954438442,0.01042161,2605.9,2605.8,14.77812779]
[1723954439448,0.01042161,2605.9,2605.8,18.61559241]
[1723954439637,0.01042161,2605.9,2605.8,14.77812779]
[1723954439945,0.01042161,2605.9,2605.8,18.61560586]
[1723954440247,0.01042161,2605.9,2605.8,13.81886714]
[1723954441049,0.01042161,2605.9,2605.8,18.61563449]
[1723954442449,0.01042161,2605.9,2605.8,18.61551354]
[1723954443044,0.01042161,2605.9,2605.8,18.00966079]
[1723954443241,0.01042161,2605.9,2605.8,18.61550493]
[1723954443741,0.01042161,2605.9,2605.8,7.97509292]
[1723954444242,0.01042161,2605.9,2605.8,11.81269292]
[1723954444549,0.01042161,2605.9,2605.8,10.94048391]
[1723954444860,0.01042161,2605.9,2605.8,18.00971141]
[1723954445046,0.01042161,2605.9,2605.8,18.6155655]
[1723954447554,0.01042161,2605.9,2605.8,18.00971141]
[1723954447739,0.01042161,2605.9,2605.8,18.61556101]
[1723954448241,0.01042161,2605.9,2605.8,13.81870101]
[1723954448644,0.01042161,2605.9,2605.8,13.21285141]
[1723954448846,0.01042161,2605.9,2605.8,13.81879342]
[1723954449040,0.01042161,2605.9,2605.8,14.77805342]
[1723954451259,0.01042161,2605.9,2605.8,14.17219876]
[1723954451455,0.01042161,2605.9,2605.8,14.7780532]
[1723954455249,0.01042161,2605.9,2605.8,14.77790713]
[1723954455549,0.01042161,2605.9,2605.8,14.77789684]
[1723954457444,0.01042161,2605.9,2605.8,12.77176585]
[1723954457651,0.01042161,2605.9,2605.8,14.78426941]
[1723954458442,0.01042161,2605.9,2605.8,14.78419752]
[1723954459750,0.01042161,2605.9,2605.8,12.77175986]
[1723954459951,0.01042161,2605.9,2605.8,14.78419515]
[1723954460155,0.01042161,2605.9,2605.8,14.78419908]
[1723954460446,0.01042161,2605.9,2605.8,13.82493908]
[1723954460947,0.01042161,2605.9,2605.8,13.8249464]
[1723954461141,0.01042161,2605.9,2605.8,14.17836431]
[1723954461341,0.01042161,2605.9,2605.8,14.78421288]
[1723954461949,0.00052297,2605.9,2605.8,12.77177759]
[1723954462149,0.00052297,2605.9,2605.8,15.27944133]
[1723954463754,0.00052297,2605.9,2605.8,14.67359276]
[1723954464052,0.00052297,2605.9,2605.8,15.27942168]
[1723954464457,0.3653,2606.5,2606.2,0.95908]
[1723954464751,0.3653,2606.5,2606.4,2.47602009]
[1723954464939,0.3653,2606.5,2606.4,5.95959926]
[1723954465141,0.0774,2606.9,2606.4,7.66224096]
[1723954465440,0.3653,2606.8,2606.7,0.967]
[1723954465757,0.3653,2606.8,2606.7,1.3304]
[1723954468046,4.2013,2606.8,2606.7,1.3304]
[1723954468548,4.2013,2606.8,2606.7,0.3634]
[1723954469958,0.3653,2606.8,2606.7,0.3634]
[1723954470155,4.2013,2606.8,2606.7,0.3634]
[1723954470344,0.3653,2606.8,2606.7,0.3634]
[1723954470650,4.2013,2606.8,2606.7,0.3634]
[1723954471047,0.3653,2606.8,2606.7,0.3634]
[1723954472552,0.3653,2606.8,2606.7,1.3304]
[1723954475058,0.3653,2606.8,2606.7,5.55979573]
[1723954477655,4.2013,2606.8,2606.7,4.22939573]
[1723954477952,4.2784,2606.8,2606.6,0.967]
[1723954478154,0.4424,2606.8,2606.5,4.5773665]
[1723954478349,1.4094,2606.8,2606.5,5.5443665]
[1723954478654,1.4094,2606.8,2606.6,4.30402054]
[1723954479251,0.3653,2606.8,2606.6,4.30402054]
[1723954479553,0.3653,2606.8,2606.6,5.27102054]
[1723954483760,0.00920376,2606.9,2606.6,5.27102054]
[1723954483951,0.00920376,2606.9,2606.7,0.967]
[1723954484162,0.00920376,2606.9,2606.8,0.3546]
[1723954484358,0.00920376,2606.9,2606.8,0.7287]
[1723954491458,0.00920376,2606.9,2606.8,4.77390847]
[1723954495072,0.00920376,2606.9,2606.8,5.74090847]
[1723954495265,0.3579,2607.3,2606.9,0.95884]
[1723954495470,0.3579,2607.3,2607.1,0.967]
[1723954495669,0.3579,2607.3,2607.2,0.3656]
[1723954495966,0.3579,2607.3,2607.2,0.721]
[1723954496172,4.1931,2607.3,2607.2,0.721]
[1723954496368,4.19771195,2607.3,2607.2,0.721]
[1723954497175,4.19771195,2607.3,2607.0,0.97275827]
[1723954497475,0.36251195,2607.3,2607.0,0.97275827]
[1723954497669,0.43931195,2607.3,2607.0,0.97275827]
[1723954497885,1.39803195,2607.3,2607.0,0.97275827]
[1723954498069,1.40631195,2607.3,2607.0,0.97275827]
[1723954498289,2.36502195,2607.3,2607.0,0.97275827]
[1723954498481,5.13358,2607.1,2607.0,0.00575827]
[1723954498876,13.96958,2607.1,2607.0,0.00575827]
[1723954499476,13.96958,2607.1,2606.4,3.21171346]
[1723954499676,13.96958,2607.1,2606.4,0.00391346]
[1723954499677,0.967,2606.5,2606.4,0.00391346]
[1723954499875,3.836,2607.0,2606.4,0.00391346]
[1723954499876,0.00461195,2607.3,2606.8,0.95889]
[1723954500078,0.00461195,2607.3,2607.0,0.967]
[1723954500373,0.00461195,2607.3,2606.9,1.0751]
[1723954500374,1.93034195,2607.3,2606.9,6.22421547]
[1723954500593,0.967,2607.0,2606.8,0.00575827]
[1723954500777,0.0768,2606.9,2606.8,0.00575827]
[1723954500969,4.87166,2606.9,2606.8,0.00575827]
[1723954501171,8.9128,2606.9,2606.8,0.00575827]
[1723954501369,3.9128,2606.9,2606.8,0.00575827]
[1723954502183,3.836,2606.9,2606.8,0.00575827]
[1723954502377,4.79486,2606.9,2606.8,0.00575827]
[1723954502587,4.2719,2606.9,2606.8,0.00575827]
[1723954502771,4.1951,2606.9,2606.8,0.00575827]
[1723954503977,11.12096,2606.9,2606.8,0.00575827]
[1723954504173,11.19776,2606.9,2606.8,0.00575827]
[1723954505069,6.19776,2606.9,2606.8,0.00575827]
[1723954505270,10.2389,2606.9,2606.8,0.00575827]
[1723954505477,5.2389,2606.9,2606.8,0.00575827]
[1723954505877,6.19776,2606.9,2606.8,0.00575827]
[1723954506085,9.40556,2606.9,2606.8,0.00575827]
[1723954506280,14.40556,2606.9,2606.8,0.00575827]
[1723954506479,9.40556,2606.9,2606.8,0.00575827]
[1723954506680,11.19776,2606.9,2606.8,0.00575827]
[1723954506885,5.2389,2606.9,2606.8,0.00575827]
[1723954507083,13.4467,2606.9,2606.8,0.00575827]
[1723954507391,8.4467,2606.9,2606.8,0.00575827]
[1723954509384,13.4467,2606.9,2606.8,0.00575827]
[1723954509584,8.4467,2606.9,2606.8,0.00575827]
[1723954511386,8.3699,2606.9,2606.8,0.00575827]
[1723954511788,5.1621,2606.9,2606.8,0.00575827]
[1723954512591,11.12096,2606.9,2606.8,0.00575827]
[1723954513079,6.12096,2606.9,2606.8,0.00575827]
[1723954513693,5.1621,2606.9,2606.8,0.00575827]
[1723954515282,8.3699,2606.9,2606.8,0.00575827]
[1723954517684,14.32876,2606.9,2606.8,0.00575827]
[1723954517993,14.32876,2606.9,2606.5,0.3509]
[1723954517994,0.95896,2606.7,2606.5,0.3509]
[1723954518179,0.967,2606.6,2606.5,0.3509]
[1723954518574,4.8038,2606.6,2606.5,0.3509]
[1723954519085,4.8038,2606.6,2606.4,0.00391346]
[1723954519301,9.3413,2606.5,2606.4,0.00391346]
[1723954519589,9.418,2606.5,2606.4,0.00391346]
[1723954519797,14.418,2606.5,2606.4,0.00391346]
[1723954520487,0.95916,2606.1,2605.7,1.00315954]
[1723954520688,1.3377,2606.0,2605.8,0.3778]
[1723954521386,1.3377,2606.0,2605.8,0.38141757]
[1723954522785,5.1753,2606.0,2605.8,0.38141757]
[1723954523193,6.13449,2606.0,2605.8,0.38141757]
[1723954524586,5.1753,2606.0,2605.8,0.38141757]
[1723954525092,1.3377,2606.0,2605.8,0.38141757]
[1723954527293,0.967,2606.0,2605.8,0.38141757]
[1723954529694,0.00575827,2606.2,2606.1,0.95915]
[1723954529900,0.00575827,2606.2,2606.1,1.92615]
[1723954530192,0.00575827,2606.2,2606.1,9.99033985]
[1723954530499,0.00575827,2606.2,2606.1,10.99349939]
[1723954530795,0.00575827,2606.2,2606.1,9.99033985]
[1723954531093,3.74499126,2606.8,2606.2,0.95909]
[1723954531299,2.77799126,2606.8,2606.7,0.967]
[1723954531595,3.2078,2606.9,2606.7,0.967]
[1723954531896,3.2078,2606.9,2606.8,1.3277]
[1723954532131,3.2078,2606.9,2606.8,1.7042]
[1723954533300,3.2078,2606.9,2606.8,0.7372]
[1723954534194,0.97275827,2607.1,2606.8,0.7372]
[1723954534195,3.2078,2607.0,2606.8,0.7372]
[1723954534395,3.2078,2607.0,2606.8,1.0906]
[1723954534794,0.97275827,2607.1,2606.8,1.0906]
[1723954535842,0.967,2606.9,2606.8,0.7299]
[1723954536203,1.3341,2606.9,2606.8,0.7299]
[1723954538391,4.803,2606.9,2606.8,0.3765]
[1723954538597,0.967,2606.9,2606.8,0.3765]
[1723954539910,0.00575827,2607.1,2606.8,0.3765]
[1723954540205,0.97275827,2607.1,2606.8,0.3765]
[1723954541603,0.967,2607.0,2606.8,0.3765]
[1723954542701,0.967,2607.0,2606.5,0.7197]
[1723954542898,0.967,2606.6,2606.1,3.2078]
[1723954543198,0.967,2606.3,2606.0,0.7359]
[1723954545712,0.967,2606.4,2606.0,1.7029]
[1723954545907,0.3616,2606.5,2606.0,0.7359]
[1723954548310,1.32063,2606.5,2606.0,0.7359]
[1723954549005,0.3616,2606.5,2606.0,0.7359]
[1723954550108,3.2078,2606.6,2606.2,0.95909]
[1723954551116,3.2078,2606.6,2606.3,0.95908]
[1723954551301,3.2078,2606.6,2606.4,0.3739]
[1723954551502,3.2078,2606.6,2606.5,0.3542]
[1723954553611,0.3689,2606.7,2606.5,0.3542]
[1723954557500,0.3689,2606.7,2606.2,3.2078]
[1723954557702,5.5288,2606.6,2606.2,3.2078]
[1723954557903,5.5288,2606.6,2606.1,0.7043]
[1723954558307,0.95907,2606.4,2606.1,0.7043]
[1723954558704,1.04148,2606.3,2606.1,0.7043]
[1723954559008,0.3615,2606.2,2606.1,0.7043]
[1723954565904,0.95906,2606.4,2606.1,0.7043]
[1723954567013,0.95908,2606.3,2606.1,0.7043]
[1723954567809,3.8368,2606.3,2605.8,0.00361757]
[1723954568008,3.564,2606.5,2605.8,0.00361757]
[1723954568009,0.967,2606.0,2605.8,0.00361757]
[1723954573412,3.8376,2605.9,2605.8,0.00361757]
[1723954573720,1.9262,2606.0,2605.8,0.00361757]
[1723954573721,4.8046,2606.0,2605.8,0.00361757]
[1723954573918,3.8376,2605.9,2605.8,0.00361757]
[1723954574221,4.8046,2606.0,2605.8,0.00361757]
[1723954574926,0.967,2606.0,2605.8,0.00361757]
[1723954577515,3.2078,2606.2,2605.9,0.95922]
[1723954577919,3.2078,2606.2,2606.0,0.3764]
[1723954578116,3.2078,2606.2,2606.1,0.3639]
[1723954578315,3.2078,2606.2,2606.1,0.7189]
[1723954581224,0.967,2606.3,2606.1,0.7189]
[1723954581409,4.8038,2606.3,2605.8,0.00361757]
[1723954581618,0.967,2605.9,2605.8,0.37131757]
[1723954581825,1.92623,2605.9,2605.8,0.00361757]
[1723954582016,4.8046,2605.9,2605.8,0.00361757]
[1723954583656,5.76383,2605.9,2605.8,0.00361757]
[1723954584023,4.79683,2605.9,2605.8,0.00361757]
[1723954585327,7.11783,2605.9,2605.8,0.00361757]
[1723954585524,0.9593,2605.7,2605.6,0.37345827]
[1723954586025,0.95928,2605.8,2605.6,0.37345827]
[1723954586728,0.95928,2605.8,2605.6,0.37723007]
[1723954587431,0.9593,2605.7,2605.6,0.37723007]
[1723954588425,0.9593,2605.7,2605.6,0.00953007]
[1723954588820,4.7969,2605.7,2605.6,0.00953007]
[1723954590820,5.10388689,2605.7,2605.6,0.00953007]
[1723954591915,8.31168689,2605.7,2605.6,0.00953007]
[1723954593433,8.0047,2605.7,2605.6,0.00953007]
[1723954599627,4.7969,2605.7,2605.6,0.00953007]
[1723954599821,8.0047,2605.7,2605.6,0.00953007]
[1723954600429,4.7969,2605.7,2605.6,0.00953007]
[1723954600634,8.0047,2605.7,2605.6,0.00953007]
[1723954603830,4.7969,2605.7,2605.6,0.00953007]
[1723954604034,8.9717,2605.7,2605.6,0.00953007]
[1723954615427,5.7639,2605.7,2605.6,0.00953007]
[1723954615633,8.9717,2605.7,2605.6,0.00953007]
[1723954617643,4.1671,2605.7,2605.6,0.00953007]
[1723954617842,8.9717,2605.7,2605.6,0.00953007]
[1723954618841,5.1341,2605.7,2605.6,0.00953007]
[1723954621237,8.9717,2605.7,2605.6,0.00953007]
[1723954622545,5.1341,2605.7,2605.6,0.00953007]
[1723954623238,1.9263,2605.7,2605.6,0.00953007]
[1723954623448,5.1341,2605.7,2605.6,0.00953007]
[1723954625241,8.9717,2605.7,2605.6,0.00953007]
[1723954626344,0.95956,2605.0,2604.9,1.00315954]
[1723954626539,0.95956,2605.0,2604.5,2.51503349]
[1723954626540,0.95962,2604.9,2604.7,0.6953]
[1723954626740,1.92663,2604.8,2604.7,0.6953]
[1723954627149,0.967,2604.8,2604.7,0.6953]
[1723954627346,0.96975896,2604.8,2604.7,0.69807549]
[1723954627745,0.00275896,2604.8,2604.7,4.53727549]
[1723954628049,0.96975896,2604.8,2604.7,4.53727549]
[1723954630352,0.00275896,2604.8,2604.7,9.02853967]
[1723954630544,0.00275896,2604.8,2604.7,9.53154861]
[1723954630741,0.967,2604.9,2604.8,0.95963]
[1723954631043,0.967,2604.9,2604.8,5.36863312]
[1723954631249,0.967,2604.9,2604.8,8.24820312]
[1723954631446,0.967,2604.9,2604.8,8.24811663]
[1723954631638,0.967,2604.9,2604.8,6.73908982]
[1723954631947,0.97005311,2604.9,2604.8,8.24811663]
[1723954632561,0.97005311,2604.9,2604.8,8.24810666]
[1723954632843,0.97005311,2604.9,2604.8,6.73907985]
[1723954633049,0.97005311,2604.9,2604.8,8.2481135]
[1723954633840,0.97005311,2604.9,2604.8,6.73908669]
[1723954635141,0.97005311,2604.9,2604.8,8.2481135]
[1723954635839,0.97005311,2604.9,2604.8,8.24812849]
[1723954636148,0.97005311,2604.9,2604.8,8.24812789]
[1723954637251,0.97005311,2604.9,2604.8,8.24811745]
[1723954637750,0.97005311,2604.9,2604.8,8.24812737]
[1723954638860,0.00575827,2605.0,2604.9,0.95959]
[1723954639151,0.967,2605.7,2605.2,0.967]
[1723954639354,0.967,2605.7,2605.5,1.96472278]
[1723954639858,0.96982997,2605.7,2605.6,0.95934]
[1723954640151,0.96982997,2605.7,2605.6,8.32721854]
[1723954640348,0.96982997,2605.7,2605.6,7.32184576]
[1723954640543,0.96982997,2605.7,2605.6,8.32676036]
[1723954641148,0.00282997,2605.7,2605.6,13.32676036]
[1723954641340,0.00282997,2605.7,2605.6,21.42696159]
[1723954642242,0.97275827,2605.9,2605.8,0.95926]
[1723954642451,2.77799126,2606.4,2605.8,0.95926]
[1723954642452,2.77799126,2606.4,2606.1,0.95912]
[1723954642748,0.967,2606.3,2606.2,1.68229]